Cogmind - Beta 17 @@@ ROGUE MODE // 2026.08.08 @ 04:05:41 Player: 4R-ZE3 Result: Destroyed by DV-4S4(R) with Subdweller Beam Cannon Performance ------------- Evolutions (0) 0 Regions Visited (2) 400 Robots Destroyed (23) 115 Value Destroyed (429) 429 Prototype IDs (0) 0 Alien Tech Used (0) 0 Bonus (0) 0 TOTAL SCORE: 944 Bonus ------- None Cogmind --------- Core Integrity 0/250 Matter 271/300 Energy 80/100 System Corruption 0% Temperature Cool (15) Movement Rolling (90) Location -10/Subcaves Parts ------- > --- POWER (1) -------- (None) > --- PROPULSION (2) --- Wheel Compact Wheel > --- UTILITY (2) ------ Large Storage Unit > --- WEAPON (2) ------- Medium Laser Medium Laser > --- INVENTORY (15) --- Light Treads Myomer Leg Small Storage Unit Scrap Shield Light Assault Rifle Hammer Peak State ------------ > --- POWER ------------ Light Nuclear Core > --- PROPULSION ------- Light Treads Light Treads > --- UTILITY ---------- Heat Sink Small Storage Unit > --- WEAPON ----------- Small Laser Beam Cannon > --- INVENTORY -------- Ion Engine Light Treads Wheel Compact Wheel Medium Laser Medium Laser Light Assault Rifle Light Assault Rifle [Rating: 9] Favorites ----------- Power Light Nuclear Core Engine Ion Engine Power Core Light Nuclear Core Propulsion Light Treads Treads Light Treads Wheel Wheel Utility Small Storage Unit Device Heat Sink Storage Small Storage Unit Weapon Medium Laser Energy Gun Medium Laser Energy Cannon Beam Cannon Ballistic Gun Light Assault Rifle Launcher Grenade Launcher Build | -11 -10 -10 ------- Run | Yrd Mat Sub Slots Evolved . | . . . Power . | . . . Propulsion . | . . . Utility . | . . . Weapon . | . . . Parts Attached 17 | 5 10 2 Power 3 | 1 1 1 Engine 2 | 1 . 1 Core 1 | . 1 . Reactor . | . . . Propulsion 5 | 2 2 1 Treads 3 | . 2 1 Leg . | . . . Wheel 2 | 2 . . Hover . | . . . Flight . | . . . Utility 3 | 1 2 . Device 1 | . 1 . Storage 2 | 1 1 . Processor . | . . . Hackware . | . . . Protection . | . . . Artifact . | . . . Weapon 6 | 1 5 . Energy Gun 3 | 1 2 . Energy Cannon 1 | . 1 . Ballistic Gun 1 | . 1 . Ballistic Cannon . | . . . Launcher 1 | . 1 . Special Weapon . | . . . Impact Weapon . | . . . Slashing Weapon . | . . . Piercing Weapon . | . . . Special Melee Weapon . | . . . Unidentified Prototypes . | . . . Parts Lost 7 | . 1 6 Power 2 | . . 2 Propulsion 2 | . . 2 Utility 1 | . . 1 Weapon 2 | . 1 1 Highest Loss Streak 4 | . 1 4 To Critical Strikes . | . . . Average Backups 6 | 2 7 7 Power . | . 1 . Propulsion 2 | 1 2 2 Utility . | . . 1 Weapon 2 | 1 2 3 Tool/Special . | . . . Unused Backups 4 | . . 4 Power . | . . . Propulsion 1 | . . 1 Utility 1 | . . 1 Weapon 2 | . . 2 Tool/Special . | . . . Average Slot Usage (%) 93 | . 95 87 Engine 2 | . 1 9 Core 10 | . 12 3 Treads 24 | . 26 12 Wheel 3 | . 1 12 Device 9 | . 9 5 Storage 14 | . 14 14 Energy Gun 19 | . 18 25 Energy Cannon 4 | . 5 . Ballistic Gun 2 | . 3 . Peak Build Rating 9 | 5 9 9 Average Rating 8 | 3 8 7 On Entrance 4 | . 5 9 Avg Prop Armor Cover (%) . | . . . Naked Turns . | . . . Heaviest Build 31 | 11 30 31 Greatest Support 40 | 26 40 40 Greatest Overweight (x) 1 | 1 . 1 Average Overweight (x) . | . . . Largest Inventory Capacity 15 | 8 15 15 Average Capacity 10 | 7 9 15 Most Carried 9 | 5 8 9 Average Carried 7 | 2 7 7 Final Capacity 15 | 8 15 15 Final Carried 8 | 5 8 7 Class Distribution -------------------- 100% | Mutant Dominant Class ---------------- Mutant | -10/Materials Mutant | -10/Subcaves Resources | -11 -10 -10 ----------- Run | Yrd Mat Sub Matter Collected 487 | 153 216 118 Remotely . | . . . Salvage Created 634 | . 467 167 Parts 39 | . 28 11 Haulers Intercepted 2 | . 2 . Recyclers Shooed 1 | . 1 . Parts Field Recycled . | . . . Retrieved Matter . | . . . Parts Self-Destructed 4 | . . 4 Prevented . | . . . Parts Restored . | . . . Kills | -11 -10 -10 ------- Run | Yrd Mat Sub Combat Hostiles Destroyed 18 | . 10 8 Guns 9 | . 5 4 Cannons 2 | . 2 . AOE 7 | . 3 4 Classes Destroyed 7 | . 5 2 Hauler 2 | . 2 . Recycler 1 | . 1 . Operator 1 | . 1 . Turret 1 | . . 1 Swarmer 11 | . 5 6 Grunt 5 | . 5 . Subdweller 2 | . . 2 Best Kill Streak 7 | . 4 7 Combat Bots Only 6 | . 3 6 Max Kills in Single Turn 2 | . 2 2 Gunslinging . | . . . Exploded 2 | . 2 2 Melee . | . . . Uniques/NPCs Destroyed . | . . . Combat | -11 -10 -10 -------- Run | Yrd Mat Sub Hostile Shots Fired 142 | . 34 108 Missed 42 | . 9 33 Hits 100 | . 25 75 Projectile 100 | . 25 75 Damage Taken 1059 | . 267 792 Core 255 | . 56 199 Absorbed by Shields . | . . . Core Remaining (%) 100 | 100 . . Volleys Fired 63 | . 39 24 Largest 2 | . 2 2 Hottest 110 | . 110 100 Shots Fired 119 | . 76 43 Gun 102 | . 64 38 Cannon 10 | . 10 . Launcher 7 | . 2 5 Special . | . . . Kinetic 26 | . 26 . Thermal 86 | . 48 38 Explosive 7 | . 2 5 Electromagnetic . | . . . Robot Hit Streak 11 | . 11 4 Robot Miss Streak 4 | . 2 4 Penetration Max . | . . . Secondary Targets 2 | . . 2 Max Gunslinging Chain 1 | . . 1 Shots Hit Robots 78 | . 53 25 Core Hits 45 | . 26 19 Critical Kills . | . . . Critical Parts Destroyed . | . . . Critical Strikes 3 | . 1 2 Burn 3 | . 1 2 Melee Attacks . | . . . Impact . | . . . Slashing . | . . . Piercing . | . . . Sneak Attacks . | . . . Combat Hostiles . | . . . Follow-up Attacks . | . . . Damage Inflicted 1505 | . 783 722 Guns 730 | . 482 248 Cannons 125 | . 125 . Explosions 650 | . 176 474 Melee . | . . . Ramming . | . . . Kinetic 142 | . 142 . Thermal 713 | . 465 248 Explosive 650 | . 176 474 Electromagnetic . | . . . Impact . | . . . Slashing . | . . . Piercing . | . . . Highest Corruption . | . . . Average Corruption . | . . . Corruption Purged . | . . . Corruption Blocked . | . . . Overload Shots . | . . . Overflow Damage 8 | . 8 . Projectiles . | . . . Explosions 8 | . 8 . Melee . | . . . Knockbacks . | . . . Impact . | . . . Kinetic . | . . . Secondary . | . . . Self-Inflicted Damage 59 | . . 59 Shots 2 | . . 2 Rammed . | . . . Targets Rammed . | . . . Kicked . | . . . Crushed . | . . . Highest Temperature 144 | . 144 11 Average Temperature 50 | . 52 3 Received Heat Transfer 372 | . 108 264 Siege Activations . | . . . Martial Activations . | . . . Shielding Activations . | . . . Robots Disrupted . | . . . Combat Hostiles . | . . . Robots Corrupted . | . . . Combat Hostiles . | . . . Parts Fried . | . . . Impact Corruptions . | . . . Robots Melted . | . . . Combat Hostiles . | . . . Parts Melted 2 | . 2 . Heat Transferred 2054 | . 1166 888 Parts Sabotaged . | . . . Parts Stolen . | . . . Parts Stripped . | . . . Power Chain Reactions . | . . . Alert | -11 -10 -10 ------- Run | Yrd Mat Sub Maximum Alert Level . | . . . Low Security (%) 100 | 100 100 . Level 1 . | . . . Level 2 . | . . . Level 3 . | . . . Level 4 . | . . . Level 5 . | . . . High Security . | . . . Max Security . | . . . Peak Influence 111 | . 111 . Initial . | . . . Average 29 | . 30 . Influence Increases 578 | . 293 285 Destroy 0b10 Robot/C 340 | . 200 140 Destroy 0b10 Robot/NC 20 | . 20 . Destroy Leader 44 | . 34 10 Successful Hack 6 | . 6 . Destroy Structure 18 | . 18 . Lose Combat Pursuer 150 | . 15 135 Influence Decreases 417 | . 260 157 Entered New Map 17 | . . 17 Time Decay 330 | . 250 80 Lost Part 70 | . 10 60 Squads Dispatched 3 | . 3 . Investigation 2 | . 2 . Extermination . | . . . Reinforcement 1 | . 1 . Assault . | . . . Garrison . | . . . Intercept . | . . . Searches Triggered . | . . . Construction Impeded . | . . . Haulers Reinforced . | . . . Active Scanning Responses . | . . . Cargo Convoy Interrupts . | . . . Stealth | -11 -10 -10 --------- Run | Yrd Mat Sub Distress Signals 1 | . 1 . Communications Jammed . | . . . Distress Signals . | . . . Times Spotted 42 | . 18 24 Peak Tracking Total 9 | . 4 9 Tactical Retreats 5 | . 1 4 Traps | -11 -10 -10 ------- Run | Yrd Mat Sub Traps Triggered 3 | . 3 . Indirectly . | . . . Trap Hack Attempts . | . . . Triggered . | . . . Disarmed . | . . . Reprogrammed . | . . . Reused . | . . . Traps Extracted . | . . . Installed . | . . . Triggered . | . . . Machines | -11 -10 -10 ---------- Run | Yrd Mat Sub Machines Disabled 1 | . . 1 Max in Single Turn 1 | . . 1 Machines Repaired . | . . . Machines Dismantled . | . . . Machines Sabotaged . | . . . Overloaded Fab Kills . | . . . Hacking | -11 -10 -10 --------- Run | Yrd Mat Sub Machines Accessed 4 | . 4 . Terminals 3 | . 3 . Fabricators . | . . . Repair Stations . | . . . Recycling Units 1 | . 1 . Scanalyzers . | . . . Garrison Access . | . . . Total Hacks 6 | . 6 . Successful 3 | . 3 . Failed 2 | . 2 . Catastrophic . | . . . Database Lockouts 1 | . 1 . Manual 5 | . 5 . Terminals 5 | . 5 . Fabricators . | . . . Repair Stations . | . . . Recycling Units 1 | . 1 . Scanalyzers . | . . . Garrison Access . | . . . Terminal Hacks 2 | . 2 . Robot Analysis 2 | . 2 . Fabricator Hacks . | . . . Repair Station Hacks . | . . . Recycling Unit Hacks 1 | . 1 . Retrieve Components 1 | . 1 . Scanalyzer . | . . . Garrison Access Hacks . | . . . Unauthorized Hacks . | . . . Terminals . | . . . Fabricators . | . . . Repair Stations . | . . . Recycling Units . | . . . Scanalyzers . | . . . Garrison Access . | . . . Data Cores Recovered . | . . . Used . | . . . Hacking Detections 3 | . 3 . Full Trace Events . | . . . Feedback Events . | . . . Feedback Blocked . | . . . Robot Schematics Acquired . | . . . Robots Built . | . . . Authchips . | . . . Time . | . . . Total Robot Build Rating . | . . . Part Schematics Acquired . | . . . Parts Built . | . . . Authchips . | . . . Time . | . . . Total Part Build Rating . | . . . Part Studies Acquired . | . . . Parts Repaired . | . . . Time . | . . . Parts Recycled . | . . . Recycled Matter . | . . . Retrieved Matter . | . . . Retrieved Components 1 | . 1 . Parts Scanalyzed . | . . . Part Schematics Acquired . | . . . Parts Damaged . | . . . Bothacking | -11 -10 -10 ------------ Run | Yrd Mat Sub Used RIF Installer . | . . . Robots Hacked . | . . . Non-combat . | . . . Combat . | . . . Robot Hacks Applied . | . . . Relay Couplers Released . | . . . Fabnet Peak Effective % . | . . . Robots Rewired . | . . . Allies Hacked . | . . . Hacks Repelled . | . . . Allies | -11 -10 -10 -------- Run | Yrd Mat Sub Total Allies . | . . . Largest Group . | . . . Highest-Rated Group . | . . . Highest-Rated Ally . | . . . Total Orders . | . . . Ally Attacks . | . . . Total Damage . | . . . Kills . | . . . Allies Corrupted . | . . . Allies Melted . | . . . Intel | -11 -10 -10 ------- Run | Yrd Mat Sub Active Infowar (turns) . | . . . Robot Analysis Total 2 | . 2 . Derelict Logs Recovered . | . . . Drone Launches . | . . . Drone Recoveries . | . . . Exploration | -11 -10 -10 ------------- Run | Yrd Mat Sub Turns Passed 1100 | 46 880 174 Spaces Moved 572 | 38 453 81 Core 2 | 2 . . Treads 439 | . 428 11 Legs . | . . . Wheels 131 | 36 25 70 Hover . | . . . Flight . | . . . Fastest Speed 50 | 50 90 105 Average Speed 146 | 87 156 118 Slowest Speed 240 | 100 160 240 Overloaded Moves . | . . . Propulsion Burnouts . | . . . Robots Hopped . | . . . Potential Cave-ins . | . . . Cave-ins Triggered . | . . . Exploration Rate (%) 29 | 3 78 7 Regions Visited 2 Branch Regions 1 Pre-discovered Areas . | . . . Known Exits Taken . | . . . Unknown Exits Taken 2 | 1 1 . Scrap Searched . | . . . Spaces Dug . | . . . Terrain Destroyed 43 | . 15 28 Melee . | . . . Projectile . | . . . AOE 43 | . 15 28 Terrain Rammed . | . . . Walls Destroyed . | . . . Machines Disabled . | . . . Actions | -11 -10 -10 --------- Run | Yrd Mat Sub Total 714 | 47 552 115 Wait 40 | . 40 . Move 570 | 37 452 81 Hop . | . . . Pick Up 13 | 5 6 2 Fast Attach 7 | 5 2 . Attach 6 | . 2 4 Detach . | . . . Swap 12 | . 8 4 Drop 3 | . 3 . Fire 63 | . 39 24 Melee . | . . . Ram . | . . . Kick . | . . . Crush . | . . . Escape Stasis . | . . . Rewire . | . . . Trap . | . . . Miscellaneous . | . . . Route ------- -11/Scrapyard -10/Materials (discovered 5 exits: [*Mat x3] / [*Min] / [*Sub]) -10/Subcaves (discovered 2 exits: [*Mat] / [*Rec]) History --------- Turn | Location | Event 35 | -11/Scrapyard | Discovered new exit (range 14) 47 | -11/Scrapyard | Entered Materials 250 | -10/Materials | Discovered new exit (range 9) 319 | -10/Materials | Build established: Mutant 474 | -10/Materials | Discovered new exit (range 14) 486 | -10/Materials | Central database locked down 695 | -10/Materials | Discovered new exit (range 9) 754 | -10/Materials | Discovered new exit (range 7) 918 | -10/Materials | Discovered new exit (range 7) 927 | -10/Materials | Entered Subcaves 927 | -10/Subcaves | Discovered new exit (range 10) 927 | -10/Subcaves | Discovered new exit (range 14) 977 | -10/Subcaves | Core integrity fell below 50% 1026 | -10/Subcaves | Lost 4 parts (1p2n1u) 1095 | -10/Subcaves | Ambushed by swarm of Subdwellers 1097 | -10/Subcaves | Ambushed by Subdwellers from Twisted Machinery 1097 | -10/Subcaves | Ambushed by Subdwellers from Twisted Machinery 1097 | -10/Subcaves | Ambushed by Subdwellers from Twisted Machinery 1099 | -10/Subcaves | Ambushed by Subdwellers from Twisted Machinery 1100 | -10/Subcaves | Core integrity fell below 20% 1101 | -10/Subcaves | Destroyed by DV-4S4(R) with Subdweller Beam Cannon Last Messages --------------- Analyzer. A mess of Twisted Machinery falls from the cavern ceiling. 0Q-J7A(R) comes tumbling into view. 01097_ 73-C0T(R) emerges from the Twisted Machinery. 01097_ 9P-S0T(R) angrily emerges from the Twisted Machinery. 01097_ M5-GYV(R) angrily emerges from the Twisted Machinery. 01097_ BP-GMJ(R) angrily emerges from the Twisted Machinery. 01098_ RZ-GVO(R) emerges from the Twisted Machinery. 01099_ 73-C0T(R) destroyed. 01099_ DV-4S4(R) angrily emerges from the Twisted Machinery. 01099_ M5-GYV(R) destroyed. 01100_ Ion Engine destroyed. 01100_ Grenade Launcher destroyed. Map ----- +----------------------------------------------------+ | ??????????????????????????????#" # ## | | ??????????????????????????????#" # ! ###? | | ??????????????????????????????#"" % # #?? | | ?????????????????????????????#< # # #?? | | ?????????????????????????????##"" #?? | | ??????????????????????????????#" #### # ##? | | ??????????????????????????????# ???# #? | | ??????????????????????????????# "" ??### #? | | ??????????????????????????????######??# #? | | ??????????????????????????????????????# #? | | ???????????????????????????????######## #? | | ????????????????????????######## ## < ##? | | ???????????????????????## ## #? | | ????????? ??????????## ## #? | | ????????# ##????## #### ######## #####? | | ????????# ### ##?###??????####????? | | ????????# #??????????????????? | | ???????# ###??????????????????? | | ??????? ## ##????????????????????? | | ???????? ##### #?????????????????????? | | ???????? ????# ##?????????????????????? | | ????????? ?????# ##?????????????????????? | | ????????? ##??????## R#?????????????????????? | | ?????????### ?????????#RR&R#?????????????????????? | | ??????????????????????# RRR#?????????????????????? | | ??????????????????????# &@[#?????????????????????? | | ??????????????????????# %[% #????????????????????? | | ??????????????????????####RR#????????????????????? | | ??????????????????????????# [#???????????????????? | | ???????????????????????????# #???????????????????? | | ???????????????????????????? ???????????????????? | | ?????????????????????????????##??????????????????? | | ?????????????????????????????????????????????????? | | ?????????????????????????????????????????????????? | | ?????????????????????????????????????????????????? | | ?????????????????????????????????????????????????? | | ?????????????????????????????????????????????????? | | ?????????????????????????????????????????????????? | | ?????????????????????????????????????????????????? | | ?????????????????????????????????????????????????? | | ?????????????????????????????????????????????????? | | ?????????????????????????????????????????????????? | | ?????????????????????????????????????????????????? | | ?????????????????????????????????????????????????? | | ?????????????????????????????????????????????????? | | ?????????????????????????????????????????????????? | | ?????????????????????????????????????????????????? | | ?????????????????????????????????????????????????? | | ?????????????????????????????????????????????????? | | ?????????????????????????????????????????????????? | +----------------------------------------------------+ Best States ------------- Heat Dissipation 35 Energy Generation 14 Energy Capacity 250 Matter Stores 300 Matter Capacity 300 Sight Range 16 Terrain Scan Density 10 Evasion (%) 44 Recoil Reduction 2 Item Schematics ----------------- None Robot Schematics ------------------ None Fabricated ------------ Nothing Repaired ---------- Nothing Studied --------- None Alien Tech Used ----------------- None Achievements -------------- None Challenges ------------ None Game ------ Seed ExplosiveMicroMultirail Manual? 0 Play Time 00:09:43 Cumulative 198.5 hours Start 2026.08.08 @ 03:57:47 End 2026.08.08 @ 04:05:41 Sessions 1 Manual Loads 0 Difficulty Rogue Special Mode None Game No. 211 Rogue 157 Adventurer 54 Explorer 0 Win Type - Total 9 Types 5/0/1/1/0/0/0/1/0/1 Lore% 70 Gallery% 60 Achievement% 57 Wizard Run 0 Options --------- Layout 1 ASCII 0 Keyboard 0 Movement Mouse Keybinds 1 Fullscreen 2 Font 32/Tamsyn Map View 50x35 Zoom Use 0% Tactical HUD 1 Map Filters NONE Filters NONE Steam 1 RUN: f83bff8a-d3b7-4a5e-9e17-e1ce8c5c84d3